bitfinex/quotes_BTCUSD_20240617
["timestamp","ask_amount","ask_price","bid_price","bid_amount"]
[1718610642161,0.07695,66264.0,66263.0,1.3268268]
[1718610642366,0.07695,66264.0,66263.0,1.6286538]
[1718610643842,0.07695,66264.0,66263.0,1.32682571]
[1718610644066,0.00085,66264.0,66263.0,1.67775271]
[1718610644288,0.00085,66264.0,66263.0,1.77865271]
[1718610644505,0.00085,66264.0,66263.0,1.87775271]
[1718610644718,0.00085,66264.0,66263.0,1.92277268]
[1718610644933,0.00854,66266.0,66265.0,0.974545]
[1718610645185,0.00854,66266.0,66265.0,1.44143121]
[1718610645363,0.00854,66266.0,66265.0,2.04506721]
[1718610645575,0.00854,66266.0,66265.0,1.93106545]
[1718610645778,0.00854,66266.0,66265.0,1.64324921]
[1718610645988,0.00854,66266.0,66265.0,1.50900809]
[1718610646202,0.00854,66266.0,66265.0,1.63421269]
[1718610646654,0.00854,66266.0,66265.0,1.64821269]
[1718610646868,0.00854,66266.0,66265.0,1.74821269]
[1718610647104,0.00854,66266.0,66265.0,1.76141507]
[1718610647525,0.00854,66266.0,66265.0,1.86141507]
[1718610647977,0.00854,66266.0,66265.0,1.87541507]
[1718610648204,0.00854,66266.0,66265.0,1.77541507]
[1718610648413,0.00854,66266.0,66265.0,3.37541507]
[1718610648626,0.00854,66266.0,66265.0,3.56322197]
[1718610649961,0.00854,66266.0,66265.0,3.86503997]
[1718610650381,0.00854,66266.0,66265.0,3.71443997]
[1718610650606,0.00854,66266.0,66265.0,3.46322197]
[1718610651091,0.00854,66266.0,66265.0,3.76503997]
[1718610651321,0.00854,66266.0,66265.0,3.46322197]
[1718610651536,0.00854,66266.0,66265.0,3.33801695]
[1718610651766,0.00854,66266.0,66265.0,3.76503938]
[1718610651994,0.00854,66266.0,66265.0,3.46322138]
[1718610652641,0.00854,66266.0,66265.0,1.96322138]
[1718610652863,0.00854,66266.0,66265.0,1.96322386]
[1718610653084,0.00854,66266.0,66265.0,1.01924447]
[1718610653085,0.08984,66266.0,66265.0,1.01924447]
[1718610653307,0.08984,66266.0,66265.0,0.74696172]
[1718610653519,0.08984,66266.0,66265.0,1.02877972]
[1718610653720,0.08984,66266.0,66265.0,1.35059772]
[1718610654548,0.08984,66266.0,66265.0,1.37359772]
[1718610655868,0.08984,66266.0,66265.0,1.30299772]
[1718610656084,0.08984,66266.0,66265.0,1.05177972]
[1718610656975,0.08984,66266.0,66265.0,1.35359772]
[1718610658496,0.08984,66266.0,66265.0,1.37359772]
[1718610658721,0.08984,66266.0,66265.0,1.35359772]
[1718610658935,0.08984,66266.0,66265.0,0.94362242]
[1718610659150,0.304246,66266.0,66265.0,0.39089542]
[1718610659591,0.31643324,66266.0,66265.0,0.39089542]
[1718610659803,0.16552724,66266.0,66265.0,0.39089542]
[1718610660025,0.16552724,66266.0,66265.0,0.36289542]
[1718610660461,0.16552724,66266.0,66265.0,0.45147475]
[1718610660634,0.16552724,66266.0,66265.0,0.47947475]
[1718610661094,0.16552724,66266.0,66265.0,0.46547475]
[1718610661320,0.16552724,66266.0,66265.0,0.45147475]
[1718610661540,0.16552724,66266.0,66265.0,0.46547475]
[1718610661756,0.16552724,66266.0,66265.0,0.47947475]
[1718610661976,0.92005924,66266.0,66265.0,0.15320542]
[1718610662215,1.22187224,66266.0,66265.0,0.15320542]
[1718610662466,1.22187224,66266.0,66265.0,0.028]
[1718610662941,0.92005924,66266.0,66265.0,0.028]
[1718610664534,0.16552724,66266.0,66265.0,0.480727]
[1718610664537,0.16552724,66266.0,66265.0,0.60595868]
[1718610664770,0.16552724,66266.0,66265.0,0.97552605]
[1718610665006,0.15334,66266.0,66265.0,0.67370805]
[1718610665477,0.16551074,66266.0,66265.0,0.37189005]
[1718610665916,0.16551074,66266.0,66265.0,0.30414068]
[1718610666350,0.16551074,66266.0,66265.0,0.60595868]
[1718610666572,0.15334,66266.0,66265.0,0.60595868]
[1718610666796,0.16532911,66266.0,66265.0,0.60595868]
[1718610667755,0.16532911,66266.0,66265.0,0.30414068]
[1718610668532,0.16532911,66266.0,66265.0,0.37189095]
[1718610668776,0.16532911,66266.0,66265.0,0.67370895]
[1718610669465,0.16532911,66266.0,66265.0,0.37189095]
[1718610669682,0.16532911,66266.0,66265.0,0.67370895]
[1718610669903,0.16532911,66266.0,66265.0,0.37189095]
[1718610670286,0.16532911,66266.0,66265.0,0.24665927]
[1718610670686,0.16532911,66266.0,66265.0,0.26665927]
[1718610670915,0.16532911,66266.0,66265.0,0.87029527]
[1718610671099,0.15315837,66266.0,66265.0,0.85029527]
[1718610671519,0.15315837,66266.0,66265.0,0.99552607]
[1718610672371,0.16532855,66266.0,66265.0,0.97552603]
[1718610672783,0.16532855,66266.0,66265.0,0.85029527]
[1718610673000,0.16532855,66266.0,66265.0,0.97552613]
[1718610673867,0.16532855,66266.0,66265.0,0.67370813]
[1718610674097,0.16532855,66266.0,66265.0,0.37189013]
[1718610674308,0.16532855,66266.0,66265.0,0.30413986]
[1718610674520,0.16532855,66266.0,66265.0,0.178909]
[1718610674949,0.16532855,66266.0,66265.0,0.028]
[1718610678188,1.22167355,66266.0,66265.0,0.028]
[1718610678462,1.58539817,66266.0,66265.0,0.028]
[1718610678903,1.60533654,66266.0,66265.0,0.028]
[1718610680372,0.01993837,66260.0,66247.0,0.1]
[1718610680591,0.139,66247.0,66245.0,0.081765]
[1718610680815,0.139,66247.0,66246.0,0.15548567]
[1718610681041,0.139,66247.0,66246.0,0.181182]
[1718610681265,0.0752,66252.0,66246.0,0.52002405]
[1718610681522,0.0752,66252.0,66251.0,0.0506]
[1718610681725,0.0752,66252.0,66251.0,0.17585937]
[1718610682618,0.0752,66252.0,66251.0,0.17585869]
[1718610683408,0.0752,66252.0,66251.0,0.12525869]
[1718610683631,0.226138,66252.0,66251.0,0.12525869]
[1718610684073,0.228138,66252.0,66251.0,0.13825869]
[1718610685447,0.228138,66252.0,66251.0,0.013]
[1718610685448,0.831892,66252.0,66251.0,0.013]
[1718610686347,0.150945,66249.0,66248.0,0.0506]
[1718610686563,0.150945,66249.0,66248.0,0.35094811]
[1718610686794,0.291645,66249.0,66248.0,0.35094811]
[1718610687027,0.895427,66249.0,66248.0,0.12526032]
[1718610687333,1.197318,66249.0,66248.0,0.12526032]
[1718610687513,1.197318,66249.0,66245.0,0.000935]
[1718610687514,0.291652,66246.0,66245.0,0.000935]
[1718610687741,0.895462,66246.0,66245.0,0.000935]
[1718610687977,0.593557,66246.0,66245.0,0.12620477]
[1718610688443,0.895462,66246.0,66245.0,0.12620477]
[1718610688753,0.895462,66246.0,66245.0,0.000935]
[1718610689270,0.896462,66246.0,66245.0,0.011935]
[1718610689547,0.594557,66246.0,66245.0,0.011935]
[1718610689826,0.595557,66246.0,66245.0,0.022935]
[1718610690022,0.594557,66246.0,66245.0,0.011935]
[1718610690249,0.593557,66246.0,66245.0,0.000935]
[1718610691483,0.897462,66246.0,66245.0,0.000935]
[1718610691727,0.90928998,66246.0,66245.0,0.000935]
[1718610693938,0.92922835,66246.0,66245.0,0.000935]
[1718610694165,1.23113335,66246.0,66245.0,0.000935]
[1718610694598,1.21119498,66246.0,66245.0,0.000935]
[1718610694837,1.23113335,66246.0,66245.0,0.000935]
[1718610695095,1.21119498,66246.0,66245.0,0.000935]
[1718610699143,1.23113335,66246.0,66245.0,0.000935]
[1718610703336,1.5443719,66246.0,66245.0,0.000935]
[1718610703536,1.23113335,66246.0,66245.0,0.000935]
[1718610703733,1.54437171,66246.0,66245.0,0.000935]
[1718610708981,1.84627671,66246.0,66245.0,0.000935]
[1718610709826,1.54437171,66246.0,66245.0,0.000935]
[1718610710036,1.54237171,66246.0,66245.0,0.000935]
[1718610710277,1.55037171,66246.0,66245.0,0.001935]
[1718610710481,1.56037171,66246.0,66245.0,0.002935]
[1718610712357,1.86227671,66246.0,66245.0,0.002935]
[1718610712584,1.56037171,66246.0,66245.0,0.002935]
[1718610713669,1.56038163,66246.0,66245.0,0.002935]
[1718610713902,1.056842,66235.0,66234.0,0.000935]
[1718610714152,1.83968365,66235.0,66234.0,0.000935]
[1718610714364,1.90146933,66235.0,66234.0,0.000935]
[1718610716783,1.91546933,66235.0,66234.0,0.000935]
[1718610716987,1.91552806,66235.0,66234.0,0.000935]
[1718610717765,1.92752806,66235.0,66234.0,0.000935]
[1718610718186,1.91552806,66235.0,66234.0,0.000935]
[1718610718585,1.92952806,66235.0,66234.0,0.000935]
[1718610720395,0.95312469,66235.0,66234.0,0.000935]
[1718610720813,1.25507969,66235.0,66234.0,0.000935]
[1718610721411,0.94177268,66235.0,66234.0,0.000935]
[1718610721618,0.19016268,66235.0,66234.0,0.000935]
[1718610721892,0.03918568,66235.0,66234.0,0.000935]
[1718610722097,0.03918568,66235.0,66234.0,0.70195029]
[1718610722287,0.03918568,66235.0,66234.0,1.05300929]
[1718610722529,0.028,66235.0,66234.0,2.57600929]
[1718610722729,0.028,66235.0,66234.0,2.70130041]
[1718610722936,0.014,66235.0,66234.0,2.70130041]
[1718610723148,0.014,66235.0,66234.0,1.20130041]
[1718610723375,0.016,66235.0,66234.0,0.89934141]
[1718610723620,0.002,66235.0,66234.0,1.22130041]
[1718610723834,0.002,66235.0,66234.0,3.08589858]
[1718610724239,0.009,66235.0,66234.0,3.08589858]
[1718610724484,0.009,66235.0,66234.0,1.58589858]
[1718610724698,0.001,66235.0,66234.0,1.58689858]
[1718610724907,0.150957,66244.0,66240.0,0.150965]
[1718610725126,0.150957,66244.0,66242.0,0.0506]
[1718610725331,0.01119099,66243.0,66242.0,0.0506]
[1718610725815,0.00085,66246.0,66242.0,0.0506]
[1718610726286,0.150954,66245.0,66242.0,0.0997]
[1718610726512,0.1621455,66245.0,66242.0,0.0997]
[1718610727348,0.0111915,66245.0,66242.0,0.0997]
[1718610727762,0.0151915,66245.0,66242.0,0.0997]
[1718610728391,0.1661465,66245.0,66242.0,0.0491]
[1718610728574,0.0151915,66245.0,66242.0,0.0491]
[1718610729413,0.0151915,66245.0,66243.0,0.150958]
[1718610729623,0.0151915,66245.0,66242.0,0.1345546]
[1718610730242,0.0141915,66245.0,66242.0,0.1345546]
[1718610730658,0.0161915,66245.0,66242.0,0.2855156]
[1718610731075,0.0141915,66245.0,66243.0,0.150959]
[1718610731284,0.0141915,66245.0,66243.0,0.24495686]
[1718610731496,0.0151915,66245.0,66243.0,0.24495686]
[1718610732151,0.15096,66243.0,66239.0,0.150967]
[1718610732378,0.150957,66244.0,66239.0,0.150967]
[1718610732584,0.01118857,66242.0,66240.0,0.150965]
[1718610732795,0.01118883,66243.0,66240.0,0.150965]
[1718610733004,0.01118832,66241.0,66240.0,0.150965]
[1718610733248,0.0828,66240.0,66234.0,0.023935]
[1718610733465,0.150977,66235.0,66234.0,0.000935]
[1718610733681,0.1621638,66235.0,66234.0,0.000935]
[1718610733884,0.0111868,66235.0,66234.0,0.151914]
[1718610734090,0.0111868,66235.0,66234.0,0.174914]
[1718610734350,0.150969,66239.0,66235.0,0.150975]
[1718610734809,0.16215856,66238.0,66234.0,0.023935]
[1718610735049,0.001,66235.0,66234.0,0.001935]
[1718610735263,0.002,66235.0,66234.0,0.005935]
[1718610735486,0.001,66235.0,66234.0,0.027935]
[1718610736316,0.0121868,66235.0,66234.0,0.178914]
[1718610736520,0.001,66235.0,66234.0,0.178914]
[1718610736725,0.0121868,66235.0,66234.0,0.178914]
[1718610736936,0.001,66235.0,66234.0,0.178914]
[1718610737146,0.01119422,66235.0,66234.0,0.174914]
[1718610737357,0.01219422,66235.0,66234.0,0.175914]
[1718610737582,0.001,66235.0,66234.0,0.175914]
[1718610737787,0.01219422,66235.0,66234.0,0.175914]
[1718610737996,0.001,66235.0,66234.0,0.175914]
[1718610738203,0.01119422,66235.0,66234.0,0.174914]
[1718610738409,0.001,66235.0,66234.0,0.178914]
[1718610738610,0.01219422,66235.0,66234.0,0.178914]
[1718610738817,0.01119422,66235.0,66234.0,0.174914]
[1718610739019,0.150971,66238.0,66234.0,0.174914]
[1718610739444,0.01119473,66237.0,66234.0,0.174914]
[1718610739656,0.01119473,66237.0,66234.0,0.225514]
[1718610739876,0.01119473,66237.0,66234.0,0.074535]
[1718610740089,0.150977,66236.0,66234.0,0.074535]
[1718610740310,0.07604389,66235.0,66234.0,0.001935]
[1718610740535,0.92551816,66235.0,66234.0,0.001935]
[1718610740995,0.92551816,66235.0,66234.0,0.000935]
[1718610741206,0.92551816,66235.0,66234.0,0.001935]
[1718610741621,0.92551816,66235.0,66234.0,0.000935]
[1718610742020,0.92651816,66235.0,66234.0,0.000935]
[1718610744095,0.01288727,66235.0,66234.0,0.453873]
[1718610744298,0.01288727,66235.0,66234.0,0.2865691]
[1718610744521,0.004,66235.0,66234.0,0.875532]
[1718610745073,0.004,66235.0,66234.0,1.177491]
[1718610745287,0.004,66235.0,66234.0,1.00081934]
[1718610745484,0.004,66235.0,66234.0,1.10090127]
[1718610745703,0.001,66235.0,66234.0,1.10090132]
[1718610746103,0.002,66235.0,66234.0,1.10190132]
[1718610746341,0.002,66235.0,66234.0,1.10189924]
[1718610746737,0.001,66235.0,66234.0,1.10189924]
[1718610746921,0.001,66235.0,66234.0,1.10589924]
[1718610747189,0.002,66235.0,66234.0,1.10589924]
[1718610747509,0.07604389,66242.0,66241.0,0.150963]
[1718610747711,0.22700589,66242.0,66238.0,0.0506]
[1718610747930,0.24185873,66242.0,66238.0,0.0506]
[1718610748722,0.09089673,66242.0,66239.0,0.150967]
[1718610749177,0.08718323,66242.0,66239.0,0.150967]
[1718610749392,0.08718323,66242.0,66240.0,0.150965]
[1718610749817,0.08918323,66242.0,66240.0,0.150965]
[1718610750470,0.08718323,66242.0,66240.0,0.150965]
[1718610750682,0.08818323,66242.0,66240.0,0.150965]
[1718610751093,0.09018323,66242.0,66240.0,0.150965]
[1718610751472,0.08818323,66242.0,66240.0,0.150965]
[1718610751672,0.09118323,66242.0,66240.0,0.150965]
[1718610752881,0.09118323,66242.0,66240.0,0.08737063]
[1718610753083,0.01513934,66242.0,66241.0,0.825417]
[1718610753291,0.004,66242.0,66241.0,0.805417]
[1718610753653,0.004,66242.0,66241.0,0.8879587]
[1718610754000,0.07895,66246.0,66241.0,0.8879587]
[1718610754001,0.07895,66246.0,66242.0,0.30192]
[1718610754182,0.07895,66246.0,66244.0,0.150956]
[1718610754384,0.01115545,66245.0,66243.0,0.150958]
[1718610754838,0.01115545,66245.0,66244.0,0.150957]
[1718610756283,0.01115545,66245.0,66244.0,1.176399]
[1718610756520,0.00085,66246.0,66245.0,0.452863]
[1718610756744,0.00085,66246.0,66245.0,0.754772]
[1718610756745,0.00185,66246.0,66245.0,0.754772]
[1718610756945,0.00185,66246.0,66245.0,0.8724106]
[1718610757150,0.00085,66246.0,66245.0,0.9230106]
[1718610757366,0.00085,66246.0,66245.0,0.6211016]
[1718610758009,0.00285,66246.0,66245.0,0.6211016]
[1718610758833,0.00285,66246.0,66245.0,0.9230106]
[1718610759035,0.00285,66246.0,66245.0,0.9430106]
[1718610762838,0.00285,66246.0,66245.0,1.2449196]
[1718610763257,0.00285,66246.0,66245.0,1.57137901]
[1718610763461,0.00285,66246.0,66245.0,1.6570113]
[1718610764291,0.00085,66246.0,66245.0,1.6570113]
[1718610764702,0.00085,66246.0,66245.0,1.6580113]
[1718610765106,0.00085,66246.0,66245.0,1.6570113]
[1718610765313,0.00185,66246.0,66245.0,1.6580113]
[1718610765524,0.00285,66246.0,66245.0,1.6620113]
[1718610766638,0.00285,66246.0,66245.0,1.66199788]
[1718610768199,0.00285,66246.0,66245.0,1.59936772]
[1718610773145,0.00285,66246.0,66245.0,1.66199784]
[1718610773740,0.00285,66246.0,66245.0,1.47410739]
[1718610773946,0.00285,66246.0,66245.0,1.66199775]
[1718610774356,0.00285,66246.0,66245.0,1.28948875]
[1718610774575,0.00285,66246.0,66245.0,1.22836274]
[1718610774788,0.00285,66246.0,66245.0,1.24836274]
[1718610775017,0.00285,66246.0,66245.0,1.22836274]
[1718610775218,0.00185,66246.0,66245.0,1.22736274]
[1718610775426,0.00185,66246.0,66245.0,1.22836274]
[1718610775633,0.00285,66246.0,66245.0,1.22836274]
[1718610775841,0.00185,66246.0,66245.0,1.22736274]
[1718610776283,0.00285,66246.0,66245.0,1.22836274]
[1718610776462,0.00285,66246.0,66245.0,1.22436274]
[1718610776463,0.00185,66246.0,66245.0,1.22436274]
[1718610776886,0.00285,66246.0,66245.0,1.24836274]
[1718610777145,0.00285,66246.0,66245.0,1.11072414]
[1718610777285,0.00185,66246.0,66245.0,1.10672414]
[1718610777781,0.00285,66246.0,66245.0,1.11072414]
[1718610778339,0.00085,66246.0,66245.0,1.10572414]
[1718610778598,0.00185,66246.0,66245.0,1.25924248]
[1718610778794,0.00285,66246.0,66245.0,1.26024248]
[1718610779445,0.00285,66246.0,66245.0,0.90773348]
[1718610779660,0.00285,66246.0,66245.0,0.95833348]
[1718610780085,0.00285,66246.0,66245.0,1.26024248]
[1718610780494,0.00185,66246.0,66245.0,1.25624248]
[1718610780716,0.00185,66246.0,66245.0,1.10672414]
[1718610780947,0.00285,66246.0,66245.0,1.11072414]
[1718610781587,0.00185,66246.0,66245.0,1.10972414]
[1718610781814,0.00285,66246.0,66245.0,1.11072414]
[1718610782505,0.00285,66246.0,66245.0,1.11072636]
[1718610782723,0.00285,66246.0,66245.0,1.26074474]
[1718610783548,0.00285,66246.0,66245.0,1.02146835]
[1718610785453,0.00285,66246.0,66245.0,0.82084883]
[1718610785657,0.00285,66246.0,66245.0,0.87144883]
[1718610785862,0.01382674,66246.0,66245.0,0.87144883]
[1718610786069,0.00285,66246.0,66245.0,0.87144883]
[1718610786271,0.01382654,66246.0,66245.0,0.87144883]
[1718610786487,0.01382634,66246.0,66245.0,0.87144826]
[1718610788347,0.01282634,66246.0,66245.0,1.01953605]
[1718610788765,0.01382634,66246.0,66245.0,1.02353605]
[1718610788986,0.01282634,66246.0,66245.0,1.02253605]
[1718610789199,0.01282634,66246.0,66245.0,1.02353605]
[1718610789407,0.01382634,66246.0,66245.0,1.02353605]
[1718610789613,0.01382634,66246.0,66245.0,1.02253605]
[1718610790051,0.01482634,66246.0,66245.0,0.97293605]
[1718610790266,0.01482634,66246.0,66245.0,0.41858526]
[1718610790475,0.01482634,66246.0,66245.0,0.56953926]
[1718610790689,0.01182634,66246.0,66245.0,0.86644826]
[1718610790917,0.01182634,66246.0,66245.0,0.87044826]
[1718610791156,0.01282634,66246.0,66245.0,0.87044826]
[1718610791369,0.01282634,66246.0,66245.0,0.87138326]
[1718610791572,0.01182634,66246.0,66245.0,0.86738326]
[1718610791781,0.01282634,66246.0,66245.0,0.87138326]
[1718610792864,0.01382634,66246.0,66245.0,0.87238326]
[1718610793496,0.01282634,66246.0,66245.0,0.87138533]
[1718610794176,0.01382634,66246.0,66245.0,0.57047633]
[1718610794598,0.60968334,66246.0,66245.0,0.13120136]
[1718610794810,0.91158834,66246.0,66245.0,0.13120136]
[1718610795042,1.2247863,66246.0,66245.0,0.005935]
[1718610795691,1.2237863,66246.0,66245.0,0.001935]
[1718610795918,1.2247863,66246.0,66245.0,0.005935]
[1718610796145,1.2237863,66246.0,66245.0,0.004935]
[1718610796413,0.91058834,66246.0,66245.0,0.005935]
[1718610797068,1.22379283,66246.0,66245.0,0.005935]
[1718610797277,0.91058834,66246.0,66245.0,0.005935]
[1718610798213,0.08982634,66246.0,66245.0,0.358444]
[1718610798421,0.01282634,66246.0,66245.0,1.08867164]
[1718610798628,0.00185,66246.0,66245.0,1.08867164]
[1718610799502,0.00185,66246.0,66245.0,0.28329964]
[1718610799727,0.01274235,66246.0,66245.0,0.18181185]
[1718610799936,0.01274235,66246.0,66245.0,0.18180882]
[1718610800139,0.16369435,66246.0,66245.0,0.18180882]
[1718610800408,0.16369435,66246.0,66245.0,0.13120882]
[1718610801028,0.16369435,66246.0,66245.0,0.056535]
[1718610801235,0.16369435,66246.0,66245.0,0.09417022]
[1718610802295,0.16369435,66246.0,66245.0,0.21944441]
[1718610803204,0.16369435,66246.0,66245.0,0.21944461]
[1718610803374,0.54469935,66246.0,66245.0,0.005935]
[1718610803591,0.24279435,66246.0,66245.0,0.005935]
[1718610806175,0.09184235,66246.0,66245.0,0.005935]
[1718610806595,0.24279435,66246.0,66245.0,0.03047382]
[1718610807007,0.24279435,66246.0,66245.0,0.15574861]
[1718610807424,0.09184235,66246.0,66245.0,0.03047382]
[1718610809280,0.09184235,66246.0,66245.0,0.60861192]
[1718610809473,0.09184235,66246.0,66245.0,0.30670292]
[1718610814853,0.09184235,66246.0,66245.0,0.30669879]
[1718610816189,0.09184235,66246.0,66245.0,0.30669953]
[1718610819489,0.09184235,66246.0,66245.0,0.60860853]
[1718610819705,0.09184235,66246.0,66245.0,0.93051753]
[1718610819927,0.01274235,66246.0,66245.0,1.08260532]
[1718610820155,0.00185,66246.0,66245.0,1.55661432]
[1718610820369,0.00185,66246.0,66245.0,1.65661432]
[1718610820583,0.00185,66246.0,66245.0,3.57614762]
[1718610820836,0.00185,66246.0,66245.0,3.69262143]
[1718610821054,0.00185,66246.0,66245.0,4.17928616]
[1718610821273,0.00185,66246.0,66245.0,3.78450274]
[1718610821274,0.00085,66246.0,66245.0,3.78450274]
[1718610821490,0.00185,66246.0,66245.0,3.87749679]
[1718610821904,0.00285,66246.0,66245.0,3.87849211]
[1718610822116,0.00285,66246.0,66245.0,3.78456442]
[1718610822288,0.00185,66246.0,66245.0,3.78356442]
[1718610822524,0.00285,66246.0,66245.0,3.7620384]
[1718610822733,0.00285,66246.0,66245.0,3.76249376]
[1718610822945,0.00185,66246.0,66245.0,3.75849376]
[1718610823660,0.00285,66246.0,66245.0,4.06840276]
[1718610824082,0.00285,66246.0,66245.0,4.00093959]
[1718610824511,0.093467,66250.0,66249.0,1.577609]
[1718610824742,0.093467,66250.0,66249.0,2.02853442]
[1718610824961,0.093467,66250.0,66249.0,2.23309929]
[1718610825175,0.093467,66250.0,66249.0,3.78250054]
[1718610825391,0.093467,66250.0,66249.0,3.71507577]
[1718610825605,0.093467,66250.0,66249.0,3.76748993]
[1718610826257,0.093467,66250.0,66249.0,3.81240368]
[1718610826464,0.095467,66250.0,66249.0,3.84842606]
[1718610827275,0.094467,66250.0,66249.0,3.58994858]
[1718610827483,0.094467,66250.0,66249.0,3.59894858]
[1718610827693,0.095467,66250.0,66249.0,3.59894858]
[1718610827911,0.095467,66250.0,66249.0,3.84830621]
[1718610828343,0.095467,66250.0,66249.0,3.59894858]
[1718610828569,0.094467,66250.0,66249.0,3.58993756]
[1718610828797,0.095467,66250.0,66249.0,3.60393756]
[1718610829242,0.094467,66250.0,66249.0,3.58993756]
[1718610829693,0.095467,66250.0,66249.0,3.60393756]
[1718610829950,0.095467,66250.0,66249.0,3.59493756]
[1718610829951,0.094467,66250.0,66249.0,3.59493756]
[1718610830367,0.094467,66250.0,66249.0,3.50893756]
[1718610830788,0.094467,66250.0,66249.0,3.60893756]
[1718610831235,0.094467,66250.0,66249.0,2.10893756]
[1718610836379,0.094467,66250.0,66249.0,2.15893756]
[1718610836796,0.094467,66250.0,66249.0,3.65893756]
[1718610837210,0.094467,66250.0,66249.0,2.15893756]
[1718610837646,0.094467,66250.0,66249.0,3.65893756]
[1718610839934,0.094467,66250.0,66249.0,3.67755227]
[1718610840920,0.094467,66250.0,66249.0,3.67755264]
[1718610841560,0.094467,66250.0,66249.0,3.88107082]
[1718610842629,0.0616,66265.0,66264.0,1.378203]
[1718610842809,0.0616,66265.0,66264.0,1.70305659]
[1718610843023,0.1383,66265.0,66264.0,1.40123359]
[1718610843899,0.1383,66265.0,66264.0,1.41223359]
[1718610844932,0.1383,66265.0,66264.0,1.40623359]
[1718610846053,0.1383,66265.0,66264.0,1.40123359]
[1718610846236,0.1393,66265.0,66264.0,1.40923359]
[1718610846498,0.1393,66265.0,66264.0,1.41823359]
[1718610847602,0.001,66265.0,66264.0,1.41823359]
[1718610847841,0.001,66265.0,66264.0,1.46883359]
[1718610848301,0.001,66265.0,66264.0,1.41823359]
[1718610848512,0.001,66265.0,66264.0,1.46883359]
[1718610851763,0.001,66265.0,66264.0,1.41823359]
[1718610851972,0.1486,66265.0,66264.0,1.46883359]
[1718610852875,0.1486,66265.0,66264.0,1.46882506]
[1718610855160,0.1486,66265.0,66264.0,1.34360661]
[1718610855445,0.1486,66265.0,66264.0,1.44882457]
[1718610855659,0.1486,66265.0,66264.0,0.34490575]
[1718610855865,0.1486,66265.0,66264.0,0.79763975]
[1718610856077,0.15958484,66265.0,66264.0,0.79763975]
[1718610856356,0.1486,66265.0,66264.0,0.97424479]
[1718610856582,0.1486,66265.0,66264.0,1.22908043]
[1718610858867,0.14945,66265.0,66264.0,1.22908043]
[1718610860220,0.16043484,66265.0,66264.0,1.24714037]
[1718610860693,0.16043484,66265.0,66264.0,1.19654037]
[1718610860905,0.16043484,66265.0,66264.0,1.24714037]
[1718610864666,0.31134384,66265.0,66264.0,0.31237489]
[1718610865287,0.61316184,66265.0,66264.0,0.31237489]
[1718610865536,0.31134384,66265.0,66264.0,0.31237489]
[1718610865752,0.16043484,66265.0,66264.0,0.31237489]
[1718610866882,0.61316184,66265.0,66264.0,0.14222716]
[1718610867087,0.91497984,66265.0,66264.0,0.017]
[1718610867947,0.91497984,66265.0,66264.0,0.008]
[1718610868202,0.591634,66264.0,66263.0,0.01840714]
[1718610868404,0.60282644,66264.0,66263.0,0.01840714]
[1718610868613,0.0783,66262.0,66258.0,0.250924]
[1718610868821,0.0783,66260.0,66259.0,0.12524081]
[1718610869032,0.1388,66260.0,66258.0,0.250924]
[1718610869253,0.07169092,66260.0,66259.0,0.12524091]
[1718610869473,0.07169092,66260.0,66259.0,0.22524091]
[1718610869681,0.15489092,66260.0,66259.0,0.22524091]
[1718610870301,0.15489092,66260.0,66259.0,0.22524012]
[1718610871154,0.15489092,66260.0,66259.0,0.23024012]
[1718610871994,0.15489092,66260.0,66259.0,0.23424012]
[1718610872609,0.15489092,66260.0,66259.0,0.30986215]
[1718610875616,0.15489092,66260.0,66259.0,0.13424012]
[1718610875877,0.15489092,66260.0,66259.0,0.1342432]
[1718610875878,0.45673192,66260.0,66259.0,0.1342432]
[1718610876098,0.45673192,66260.0,66259.0,0.009]
[1718610876099,0.60765192,66260.0,66259.0,0.009]
[1718610876330,0.90949292,66260.0,66259.0,0.009]
[1718610877661,0.60765192,66260.0,66259.0,0.009]
[1718610878961,0.60061632,66260.0,66259.0,0.009]
[1718610879531,0.60061632,66260.0,66259.0,0.01681931]
[1718610880162,0.90245732,66260.0,66259.0,0.01681931]
[1718610880558,0.90245732,66260.0,66259.0,0.009]
[1718610880997,0.60061632,66260.0,66259.0,0.009]
[1718610882707,0.29877532,66260.0,66259.0,0.009]
[1718610883898,0.60061632,66260.0,66259.0,0.009]
[1718610885493,0.29877532,66260.0,66259.0,0.009]
[1718610886582,0.29877532,66260.0,66259.0,0.03191241]
[1718610886791,0.29877532,66260.0,66259.0,0.009]
[1718610888589,0.14785532,66260.0,66259.0,0.009]
[1718610890953,0.14785532,66260.0,66259.0,0.13424417]
[1718610891128,0.14785532,66260.0,66259.0,0.009]
[1718610891382,0.14785532,66260.0,66259.0,0.1342444]
[1718610891592,0.14785532,66260.0,66259.0,0.20080185]
[1718610892002,0.14870532,66260.0,66259.0,0.20080185]
[1718610893485,0.09524092,66260.0,66259.0,0.95541385]
[1718610893694,0.09524092,66260.0,66259.0,0.65356885]
[1718610893907,0.08405,66260.0,66259.0,0.65356885]
[1718610894975,0.09498904,66260.0,66259.0,0.65356885]
[1718610895637,0.09498904,66260.0,66259.0,0.35076129]
[1718610897732,0.09498904,66260.0,66259.0,0.19983929]
[1718610900448,0.60805004,66260.0,66259.0,0.13421684]
[1718610900874,0.60805004,66260.0,66259.0,0.13421925]
[1718610900875,0.90989104,66260.0,66259.0,0.13421925]
[1718610901065,0.60805004,66260.0,66259.0,0.13421925]
[1718610901303,0.60805004,66260.0,66259.0,0.00897244]
[1718610901510,0.90989104,66260.0,66259.0,0.00897244]
[1718610901722,1.22302519,66260.0,66259.0,0.00897244]
[1718610903278,1.22302519,66260.0,66259.0,0.00497244]
[1718610903478,1.22302519,66260.0,66259.0,0.000935]
[1718610903796,1.23002519,66260.0,66259.0,0.000935]
[1718610904199,1.23502519,66260.0,66259.0,0.000935]
[1718610904452,0.93018419,66260.0,66259.0,0.000935]
[1718610904654,0.93418419,66260.0,66259.0,0.000935]
[1718610905851,1.23602519,66260.0,66259.0,0.000935]
[1718610906488,0.48142319,66260.0,66259.0,0.151857]
[1718610906668,0.10758904,66260.0,66259.0,0.65301817]
[1718610906871,0.10758904,66260.0,66259.0,0.73103892]
[1718610907240,0.10758904,66260.0,66259.0,1.92919392]
[1718610907455,0.09665,66260.0,66259.0,1.92919392]
[1718610907878,0.09665,66260.0,66259.0,0.73103892]